[Event "*** Titled Tuesday Blitz"]
[Site "Chess.com"]
[Date "2021.04.06"]
[Round "9"]
[White "SF-96"]
[Black "Twitch_ElhamBlitz05"]
[Result "1-0"]
[WhiteElo "2591"]
[BlackElo "2809"]
[TimeControl "180+1"]
[EndTime "11:47:23 PDT"]
[Termination "SF-96 won on time"]

1. Nf3 {[%clk 0:02:54.9]} 1... g6 {[%clk 0:02:55.3]} 2. g3 {[%clk 0:02:54.3]}
2... Bg7 {[%clk 0:02:55.2]} 3. d4 {[%clk 0:02:55]} 3... d6 {[%clk 0:02:56.1]} 4.
Bg2 {[%clk 0:02:55]} 4... Bd7 {[%clk 0:02:57]} 5. O-O {[%clk 0:02:53.6]} 5...
Qc8 {[%clk 0:02:57.4]} 6. Re1 {[%clk 0:02:46]} 6... Bh3 {[%clk 0:02:56]} 7. Bh1
{[%clk 0:02:46.4]} 7... h5 {[%clk 0:02:56.5]} 8. e4 {[%clk 0:02:37.1]} 8... Nc6
{[%clk 0:02:53.1]} 9. Bg5 {[%clk 0:02:19.7]} 9... h4 {[%clk 0:02:42.5]} 10. c3
{[%clk 0:02:12]} 10... hxg3 {[%clk 0:02:41.1]} 11. hxg3 {[%clk 0:02:12.9]} 11...
Bg4 {[%clk 0:02:39.8]} 12. Bg2 {[%clk 0:02:05.8]} 12... Bh3 {[%clk 0:02:39.9]}
13. Bh1 {[%clk 0:02:02.5]} 13... Qd7 {[%clk 0:02:40.1]} 14. Nbd2 {[%clk
0:01:40.7]} 14... O-O-O {[%clk 0:02:37.7]} 15. Nc4 {[%clk 0:01:40.8]} 15... Bg4
{[%clk 0:02:33.4]} 16. Bg2 {[%clk 0:01:39.7]} 16... Bh6 {[%clk 0:02:15.6]} 17.
Bxh6 {[%clk 0:01:26.3]} 17... Nxh6 {[%clk 0:02:16.1]} 18. d5 {[%clk 0:01:24.5]}
18... Nb8 {[%clk 0:02:02.4]} 19. Qd4 {[%clk 0:01:05.4]} 19... c5 {[%clk
0:01:56.4]} 20. Qd3 {[%clk 0:00:46.2]} 20... Bh3 {[%clk 0:01:54.2]} 21. b4
{[%clk 0:00:46.5]} 21... Ng4 {[%clk 0:00:59.4]} 22. Bh1 {[%clk 0:00:30.7]} 22...
Qc7 {[%clk 0:00:48.4]} 23. bxc5 {[%clk 0:00:23.1]} 23... Qxc5 {[%clk 0:00:48.5]}
24. Qd4 {[%clk 0:00:23.4]} 24... Nd7 {[%clk 0:00:48]} 25. Rab1 {[%clk
0:00:21.7]} 25... b6 {[%clk 0:00:26.2]} 26. a4 {[%clk 0:00:18.4]} 26... Kb7
{[%clk 0:00:13.4]} 27. a5 {[%clk 0:00:17.5]} 27... Rc8 {[%clk 0:00:14]} 28. Rb4
{[%clk 0:00:10.5]} 28... Nge5 {[%clk 0:00:07.8]} 29. Ncxe5 {[%clk 0:00:06.5]}
29... dxe5 {[%clk 0:00:08.7]} 30. Qxc5 {[%clk 0:00:05.7]} 30... Rxc5 {[%clk
0:00:07.1]} 31. axb6 {[%clk 0:00:05.7]} 31... axb6 {[%clk 0:00:08]} 32. Ng5
{[%clk 0:00:04.6]} 32... Rxc3 {[%clk 0:00:02.5]} 33. Nxf7 {[%clk 0:00:05]} 33...
Rf8 {[%clk 0:00:03]} 34. Ng5 {[%clk 0:00:05.4]} 34... Bg4 {[%clk 0:00:03.3]} 35.
Reb1 {[%clk 0:00:05]} 35... Be2 {[%clk 0:00:02.6]} 36. Ne6 {[%clk 0:00:04.1]}
36... Rh8 {[%clk 0:00:02.9]} 37. Bg2 {[%clk 0:00:04]} 37... Rcc8 {[%clk
0:00:03]} 38. Bf1 {[%clk 0:00:03.1]} 38... Bxf1 {[%clk 0:00:02.9]} 39. Kxf1
{[%clk 0:00:02.6]} 39... Rh1+ {[%clk 0:00:01.9]} 40. Kg2 {[%clk 0:00:03.3]}
40... Rhc1 {[%clk 0:00:02.7]} 41. Rxc1 {[%clk 0:00:02.2]} 41... Rxc1 {[%clk
0:00:03.6]} 42. Ng5 {[%clk 0:00:01.8]} 42... Rc2 {[%clk 0:00:03]} 43. Rb3 {[%clk
0:00:02]} 43... Nc5 {[%clk 0:00:03.3]} 44. Rf3 {[%clk 0:00:01.9]} 44... b5
{[%clk 0:00:02.9]} 45. Rf7 {[%clk 0:00:02.5]} 45... Nd3 {[%clk 0:00:02.8]} 46.
Rxe7+ {[%clk 0:00:02.8]} 46... Ka6 {[%clk 0:00:03.5]} 47. Re6+ {[%clk 0:00:03]}
47... Ka5 {[%clk 0:00:03.7]} 48. Nh3 {[%clk 0:00:03.5]} 48... b4 {[%clk
0:00:03.2]} 49. d6 {[%clk 0:00:03.6]} 49... Nc5 {[%clk 0:00:03.6]} 50. Re7
{[%clk 0:00:02.9]} 50... b3 {[%clk 0:00:03.2]} 51. d7 {[%clk 0:00:03]} 51... Rd2
{[%clk 0:00:03.3]} 52. Rxe5 {[%clk 0:00:03.6]} 52... Kb4 {[%clk 0:00:03]} 53.
Nf4 {[%clk 0:00:01.1]} 53... b2 {[%clk 0:00:02.6]} 54. Nd5+ {[%clk 0:00:01.2]}
54... Rxd5 {[%clk 0:00:02.4]} 55. Rxd5 {[%clk 0:00:02.1]} 55... b1=Q {[%clk
0:00:02]} 56. d8=Q {[%clk 0:00:03]} 56... Qxe4+ {[%clk 0:00:02.9]} 57. Kg1
{[%clk 0:00:03.5]} 57... Qe1+ {[%clk 0:00:02.8]} 58. Kg2 {[%clk 0:00:04.1]}
58... Qe4+ {[%clk 0:00:02.5]} 59. Kh2 {[%clk 0:00:04.6]} 59... Kc4 {[%clk
0:00:02.3]} 60. Rxc5+ {[%clk 0:00:03.8]} 60... Kxc5 {[%clk 0:00:02.4]} 61. Qf8+
{[%clk 0:00:04.3]} 61... Kd4 {[%clk 0:00:01.9]} 62. Qd6+ {[%clk 0:00:03.9]}
62... Kc3 {[%clk 0:00:01.6]} 63. Qc5+ {[%clk 0:00:03.4]} 63... Kd3 {[%clk
0:00:01.4]} 64. Qd6+ {[%clk 0:00:02.3]} 64... Ke2 {[%clk 0:00:01.5]} 65. Kg1
{[%clk 0:00:02.4]} 1-0

[Event "*** Titled Tuesday Blitz"]
[Site "Chess.com"]
[Date "2021.04.06"]
[Round "9"]
[White "CSB7"]
[Black "vugarrasulov"]
[Result "0-1"]
[WhiteElo "2690"]
[BlackElo "2869"]
[TimeControl "180+1"]
[EndTime "11:47:28 PDT"]
[Termination "vugarrasulov won on time"]

1. d4 {[%clk 0:03:00.9]} 1... d5 {[%clk 0:02:59.5]} 2. Bf4 {[%clk 0:02:59.2]}
2... c5 {[%clk 0:02:59]} 3. e3 {[%clk 0:02:59.3]} 3... Nc6 {[%clk 0:02:57.3]} 4.
c3 {[%clk 0:02:59.2]} 4... Qb6 {[%clk 0:02:54.3]} 5. Qb3 {[%clk 0:02:58.1]} 5...
c4 {[%clk 0:02:52]} 6. Qc2 {[%clk 0:02:57.9]} 6... e5 {[%clk 0:02:51.5]} 7. Bxe5
{[%clk 0:02:35.1]} 7... Nxe5 {[%clk 0:02:46.1]} 8. dxe5 {[%clk 0:02:36]} 8...
Bf5 {[%clk 0:02:46.3]} 9. Qxf5 {[%clk 0:01:41.8]} 9... Qxb2 {[%clk 0:02:46]} 10.
e6 {[%clk 0:01:36.9]} 10... fxe6 {[%clk 0:02:43.1]} 11. Qxe6+ {[%clk 0:01:37.8]}
11... Ne7 {[%clk 0:02:43.3]} 12. Bxc4 {[%clk 0:01:13.1]} 12... dxc4 {[%clk
0:02:44.2]} 13. Nf3 {[%clk 0:01:11.9]} 13... Qb6 {[%clk 0:01:58.2]} 14. Qxc4
{[%clk 0:01:04.4]} 14... Rc8 {[%clk 0:01:51.6]} 15. Qb3 {[%clk 0:01:00.7]} 15...
Nc6 {[%clk 0:01:45.1]} 16. O-O {[%clk 0:00:52.7]} 16... Na5 {[%clk 0:01:44.7]}
17. Qa4+ {[%clk 0:00:49.8]} 17... Nc6 {[%clk 0:01:44.2]} 18. Nbd2 {[%clk
0:00:47.3]} 18... Be7 {[%clk 0:01:44.7]} 19. Rab1 {[%clk 0:00:45.6]} 19... Qc7
{[%clk 0:01:43.9]} 20. Qb3 {[%clk 0:00:38.4]} 20... b6 {[%clk 0:01:41.6]} 21.
Ne4 {[%clk 0:00:35.3]} 21... Na5 {[%clk 0:01:37.6]} 22. Qe6 {[%clk 0:00:25.3]}
22... Qc6 {[%clk 0:01:37.7]} 23. Qg4 {[%clk 0:00:23]} 23... O-O {[%clk
0:01:36.5]} 24. Nd4 {[%clk 0:00:19.8]} 24... Qg6 {[%clk 0:01:28.5]} 25. Qxg6
{[%clk 0:00:16.7]} 25... hxg6 {[%clk 0:01:29.4]} 26. Rfd1 {[%clk 0:00:16.6]}
26... Nc4 {[%clk 0:01:27]} 27. Nb5 {[%clk 0:00:15.2]} 27... Rfd8 {[%clk
0:01:24.8]} 28. Rxd8+ {[%clk 0:00:14.3]} 28... Rxd8 {[%clk 0:01:25.7]} 29. Nxa7
{[%clk 0:00:14.3]} 29... Ra8 {[%clk 0:01:23.5]} 30. Nc6 {[%clk 0:00:13.8]} 30...
Bf8 {[%clk 0:01:24.1]} 31. h3 {[%clk 0:00:13.3]} 31... Rxa2 {[%clk 0:01:23.3]}
32. Rd1 {[%clk 0:00:13]} 32... Ra4 {[%clk 0:01:15.9]} 33. Ng5 {[%clk 0:00:13]}
33... Nd6 {[%clk 0:01:07.3]} 34. h4 {[%clk 0:00:10.7]} 34... Rxh4 {[%clk
0:01:05.2]} 35. f4 {[%clk 0:00:10.6]} 35... Rh5 {[%clk 0:00:55.2]} 36. Ra1
{[%clk 0:00:10.9]} 36... Nf7 {[%clk 0:00:51.5]} 37. Nxf7 {[%clk 0:00:03.9]}
37... Kxf7 {[%clk 0:00:52.4]} 38. Ra7+ {[%clk 0:00:04.1]} 38... Ke6 {[%clk
0:00:51]} 39. Ne5 {[%clk 0:00:04.3]} 39... g5 {[%clk 0:00:48.3]} 40. Rb7 {[%clk
0:00:03.4]} 40... Bc5 {[%clk 0:00:48.2]} 41. Kf1 {[%clk 0:00:01.9]} 41... Bxe3
{[%clk 0:00:46.8]} 42. Nc4 {[%clk 0:00:02.3]} 42... Bc5 {[%clk 0:00:44.9]} 43.
fxg5 {[%clk 0:00:01.8]} 43... Kd5 {[%clk 0:00:45]} 44. Nxb6+ {[%clk 0:00:02]}
44... Kc6 {[%clk 0:00:45.3]} 45. Rxg7 {[%clk 0:00:02.5]} 45... Bxb6 {[%clk
0:00:45.8]} 46. Ke2 {[%clk 0:00:03.2]} 46... Kd5 {[%clk 0:00:44.1]} 47. Kf3
{[%clk 0:00:03.5]} 47... Rh1 {[%clk 0:00:43.7]} 48. Kg4 {[%clk 0:00:03.6]} 48...
Rg1 {[%clk 0:00:42.1]} 49. Kf5 {[%clk 0:00:03.9]} 49... Rxg2 {[%clk 0:00:40.7]}
50. Rd7+ {[%clk 0:00:04.2]} 50... Kc6 {[%clk 0:00:40.7]} 51. Rd3 {[%clk
0:00:04.4]} 51... Rf2+ {[%clk 0:00:40.9]} 52. Kg6 {[%clk 0:00:04.5]} 52... Bc7
{[%clk 0:00:39.9]} 53. Kh7 {[%clk 0:00:04.2]} 53... Rh2+ {[%clk 0:00:40.2]} 54.
Kg7 {[%clk 0:00:03.2]} 54... Be5+ {[%clk 0:00:40.7]} 55. Kf7 {[%clk 0:00:03.7]}
55... Rf2+ {[%clk 0:00:38.3]} 56. Ke6 {[%clk 0:00:04]} 56... Bg7 {[%clk
0:00:38.9]} 57. Rd8 {[%clk 0:00:02.6]} 57... Rg2 {[%clk 0:00:35.6]} 58. Rc8+
{[%clk 0:00:02.7]} 58... Kb7 {[%clk 0:00:35.7]} 59. Rg8 {[%clk 0:00:03.2]} 59...
Bxc3 {[%clk 0:00:34.1]} 60. g6 {[%clk 0:00:03.6]} 60... Kc7 {[%clk 0:00:34.6]}
61. g7 {[%clk 0:00:03.6]} 61... Rg1 {[%clk 0:00:24.7]} 62. Kf7 {[%clk
0:00:03.9]} 62... Rf1+ {[%clk 0:00:25]} 63. Ke6 {[%clk 0:00:04.3]} 63... Rg1
{[%clk 0:00:18.2]} 64. Kf7 {[%clk 0:00:04.4]} 64... Kd7 {[%clk 0:00:18.1]} 65.
Ra8 {[%clk 0:00:01.8]} 65... Rxg7+ {[%clk 0:00:18.3]} 66. Kf8 {[%clk 0:00:02.1]}
66... Rg3 {[%clk 0:00:19.2]} 67. Ra7+ {[%clk 0:00:02.1]} 67... Ke6 {[%clk
0:00:19.8]} 68. Ra6+ {[%clk 0:00:02.5]} 68... Kd5 {[%clk 0:00:20.4]} 69. Kf7
{[%clk 0:00:02.2]} 69... Rg7+ {[%clk 0:00:19.4]} 70. Kf8 {[%clk 0:00:02.7]}
70... Rb7 {[%clk 0:00:20.3]} 71. Rg6 {[%clk 0:00:02.3]} 71... Be5 {[%clk
0:00:20.6]} 72. Ke8 {[%clk 0:00:02.2]} 72... Bd6 {[%clk 0:00:20.4]} 73. Rg2
{[%clk 0:00:01.8]} 73... Kc6 {[%clk 0:00:17.8]} 74. Rg8 {[%clk 0:00:01.1]} 74...
Rh7 {[%clk 0:00:16.2]} 0-1

[Event "*** Titled Tuesday Blitz"]
[Site "Chess.com"]
[Date "2021.04.06"]
[Round "9"]
[White "MalyDominator"]
[Black "viktorgen2021"]
[Result "0-1"]
[WhiteElo "2477"]
[BlackElo "2309"]
[TimeControl "180+1"]
[EndTime "11:47:30 PDT"]
[Termination "viktorgen2021 won by resignation"]

1. e4 {[%clk 0:03:00.9]} 1... c6 {[%clk 0:03:00]} 2. d4 {[%clk 0:03:00.8]} 2...
d5 {[%clk 0:03:00.3]} 3. Nc3 {[%clk 0:03:00.6]} 3... dxe4 {[%clk 0:03:00.6]} 4.
Nxe4 {[%clk 0:03:01.5]} 4... Nf6 {[%clk 0:03:00.6]} 5. Nxf6+ {[%clk 0:03:01]}
5... exf6 {[%clk 0:02:58.6]} 6. c3 {[%clk 0:03:01.1]} 6... Bd6 {[%clk
0:02:58.9]} 7. Bd3 {[%clk 0:03:00.7]} 7... O-O {[%clk 0:02:58.9]} 8. Qc2 {[%clk
0:03:00.8]} 8... Re8+ {[%clk 0:02:58.3]} 9. Ne2 {[%clk 0:03:00.9]} 9... h5
{[%clk 0:02:58.9]} 10. Be3 {[%clk 0:03:00.1]} 10... Nd7 {[%clk 0:02:59.2]} 11.
O-O-O {[%clk 0:03:00.1]} 11... Nf8 {[%clk 0:02:59.1]} 12. Nf4 {[%clk 0:02:48.4]}
12... h4 {[%clk 0:02:41.8]} 13. g3 {[%clk 0:02:34.2]} 13... Qc7 {[%clk
0:02:38.8]} 14. Nh5 {[%clk 0:02:28.6]} 14... h3 {[%clk 0:02:32.2]} 15. Rde1
{[%clk 0:02:05]} 15... Qa5 {[%clk 0:02:22.5]} 16. Nf4 {[%clk 0:01:41.2]} 16...
Qxa2 {[%clk 0:02:18.2]} 17. Kd2 {[%clk 0:01:28.6]} 17... Qa5 {[%clk 0:02:14.9]}
18. Ra1 {[%clk 0:01:24.4]} 18... Qc7 {[%clk 0:02:14.1]} 19. Bf5 {[%clk
0:01:18.2]} 19... c5 {[%clk 0:02:00.7]} 20. d5 {[%clk 0:01:06.6]} 20... b5
{[%clk 0:01:35.2]} 21. Nxh3 {[%clk 0:00:57.5]} 21... g6 {[%clk 0:01:23.5]} 22.
Bxc8 {[%clk 0:00:53.6]} 22... Raxc8 {[%clk 0:01:21]} 23. Nf4 {[%clk 0:00:53.3]}
23... Qb7 {[%clk 0:01:18.4]} 24. Rad1 {[%clk 0:00:20.4]} 24... g5 {[%clk
0:01:12.4]} 25. Nh5 {[%clk 0:00:18]} 25... Qxd5+ {[%clk 0:01:12.1]} 26. Kc1
{[%clk 0:00:18.3]} 26... Qe6 {[%clk 0:01:02.4]} 27. Rhe1 {[%clk 0:00:14.2]}
27... Be5 {[%clk 0:00:54.8]} 28. f4 {[%clk 0:00:13.8]} 28... Qg4 {[%clk
0:00:53.8]} 29. Qe2 {[%clk 0:00:08.1]} 29... Qxe2 {[%clk 0:00:52.1]} 30. Rxe2
{[%clk 0:00:09]} 30... Bb8 {[%clk 0:00:47.2]} 31. fxg5 {[%clk 0:00:08.7]} 31...
Nh7 {[%clk 0:00:44.3]} 32. Nxf6+ {[%clk 0:00:07.6]} 32... Nxf6 {[%clk
0:00:43.8]} 33. gxf6 {[%clk 0:00:08.5]} 33... Be5 {[%clk 0:00:43.7]} 34. Rde1
{[%clk 0:00:08.5]} 34... Bxf6 {[%clk 0:00:43.5]} 35. Bf4 {[%clk 0:00:06.3]}
35... Rxe2 {[%clk 0:00:41.2]} 36. Rxe2 {[%clk 0:00:07.2]} 36... b4 {[%clk
0:00:41.8]} 37. h4 {[%clk 0:00:06.6]} 37... bxc3 {[%clk 0:00:41.6]} 38. bxc3
{[%clk 0:00:07.3]} 38... Bxc3 {[%clk 0:00:42.1]} 39. Kc2 {[%clk 0:00:07.9]}
39... Bd4 {[%clk 0:00:42]} 40. h5 {[%clk 0:00:08]} 40... Kg7 {[%clk 0:00:40]}
41. Re7 {[%clk 0:00:07.7]} 41... Kf6 {[%clk 0:00:38.8]} 42. Rxa7 {[%clk
0:00:07.4]} 42... Rh8 {[%clk 0:00:36.8]} 43. h6 {[%clk 0:00:07]} 43... Kg6
{[%clk 0:00:28.2]} 44. g4 {[%clk 0:00:06.5]} 44... Re8 {[%clk 0:00:26.6]} 45.
Ra6+ {[%clk 0:00:06.4]} 45... Kh7 {[%clk 0:00:24.5]} 46. Kd3 {[%clk 0:00:06.7]}
46... Re1 {[%clk 0:00:23.4]} 47. g5 {[%clk 0:00:05.9]} 47... Rf1 {[%clk
0:00:23.3]} 48. Bd2 {[%clk 0:00:05.8]} 48... Rf5 {[%clk 0:00:21.7]} 49. Kc4
{[%clk 0:00:05.5]} 49... Rf2 {[%clk 0:00:21.1]} 50. Ba5 {[%clk 0:00:05.7]} 50...
Ra2 {[%clk 0:00:19.5]} 51. Kb5 {[%clk 0:00:05.8]} 51... Rb2+ {[%clk 0:00:17.2]}
52. Kc4 {[%clk 0:00:05.6]} 52... Rc2+ {[%clk 0:00:16.7]} 53. Kd3 {[%clk
0:00:05]} 53... Rc1 {[%clk 0:00:16.3]} 54. Bd2 {[%clk 0:00:04.5]} 54... Rg1
{[%clk 0:00:15.5]} 55. Ra7 {[%clk 0:00:04.7]} 55... Kg6 {[%clk 0:00:15]} 56. Kc4
{[%clk 0:00:04.6]} 56... Rg2 {[%clk 0:00:14.5]} 57. h7 {[%clk 0:00:04.7]} 57...
Kxh7 {[%clk 0:00:14.1]} 58. Rxf7+ {[%clk 0:00:04.3]} 58... Kg6 {[%clk
0:00:14.6]} 59. Rd7 {[%clk 0:00:03.7]} 59... Rxd2 {[%clk 0:00:14.4]} 60. Rd6+
{[%clk 0:00:04]} 60... Kxg5 {[%clk 0:00:14.4]} 61. Rd5+ {[%clk 0:00:04.5]} 61...
Kf4 {[%clk 0:00:14.4]} 62. Rd6 {[%clk 0:00:05]} 62... Rc2+ {[%clk 0:00:14.6]}
63. Kd5 {[%clk 0:00:05.6]} 63... Ke3 {[%clk 0:00:13.6]} 64. Re6+ {[%clk
0:00:06]} 64... Kd3 {[%clk 0:00:14]} 65. Rh6 {[%clk 0:00:06.2]} 65... Re2 {[%clk
0:00:14.1]} 66. Rh3+ {[%clk 0:00:06.4]} 66... Re3 {[%clk 0:00:14.4]} 67. Rh1
{[%clk 0:00:06.8]} 67... Re5+ {[%clk 0:00:13]} 68. Kc6 {[%clk 0:00:06.7]} 68...
c4 {[%clk 0:00:13.4]} 69. Rd1+ {[%clk 0:00:06.5]} 69... Kc3 {[%clk 0:00:13.6]}
70. Rc1+ {[%clk 0:00:06.9]} 70... Kb3 {[%clk 0:00:14]} 71. Rb1+ {[%clk
0:00:07.2]} 71... Bb2 {[%clk 0:00:14]} 72. Rh1 {[%clk 0:00:06.9]} 72... c3
{[%clk 0:00:14.1]} 73. Rh3 {[%clk 0:00:07.3]} 73... Ka2 {[%clk 0:00:13.3]} 74.
Rh2 {[%clk 0:00:07.4]} 74... Re1 {[%clk 0:00:12.6]} 75. Rc2 {[%clk 0:00:07.1]}
75... Kb1 {[%clk 0:00:12.4]} 76. Rh2 {[%clk 0:00:07]} 76... c2 {[%clk
0:00:12.8]} 0-1

[Event "*** Titled Tuesday Blitz"]
[Site "Chess.com"]
[Date "2021.04.06"]
[Round "9"]
[White "ethylalcohol"]
[Black "ellennilssen"]
[Result "0-1"]
[WhiteElo "2096"]
[BlackElo "2230"]
[TimeControl "180+1"]
[EndTime "11:47:32 PDT"]
[Termination "ellennilssen won by checkmate"]

1. d4 {[%clk 0:03:00.9]} 1... Nf6 {[%clk 0:02:47.3]} 2. Nf3 {[%clk 0:03:00.7]}
2... g6 {[%clk 0:02:46.6]} 3. Bf4 {[%clk 0:03:01.1]} 3... d6 {[%clk 0:02:46.4]}
4. Nc3 {[%clk 0:03:01.5]} 4... Bg7 {[%clk 0:02:46.9]} 5. Qd2 {[%clk 0:03:01.9]}
5... h6 {[%clk 0:02:43.5]} 6. O-O-O {[%clk 0:03:01.2]} 6... Nbd7 {[%clk
0:02:43.5]} 7. h4 {[%clk 0:03:01.1]} 7... b6 {[%clk 0:02:33.6]} 8. e4 {[%clk
0:03:00.4]} 8... Bb7 {[%clk 0:02:33.6]} 9. e5 {[%clk 0:02:59.5]} 9... Nh5 {[%clk
0:02:28.3]} 10. e6 {[%clk 0:02:47.3]} 10... fxe6 {[%clk 0:02:24]} 11. Bd3 {[%clk
0:02:47.3]} 11... Nxf4 {[%clk 0:02:09.7]} 12. Qxf4 {[%clk 0:02:46.7]} 12... Nf8
{[%clk 0:02:10.6]} 13. Qg4 {[%clk 0:02:33]} 13... Kf7 {[%clk 0:01:58.2]} 14. Rh3
{[%clk 0:02:02.2]} 14... Bf6 {[%clk 0:01:56.8]} 15. Rg3 {[%clk 0:01:54.8]} 15...
Rg8 {[%clk 0:01:56.4]} 16. Ne4 {[%clk 0:01:55]} 16... Qd7 {[%clk 0:01:52]} 17.
Qf4 {[%clk 0:01:47.8]} 17... Ke8 {[%clk 0:01:19.4]} 18. Nxf6+ {[%clk 0:01:31.9]}
18... exf6 {[%clk 0:01:20.3]} 19. Qxf6 {[%clk 0:01:32.4]} 19... Qf7 {[%clk
0:01:20.9]} 20. Qxf7+ {[%clk 0:01:10]} 20... Kxf7 {[%clk 0:01:21.8]} 21. c4
{[%clk 0:01:04.7]} 21... Re8 {[%clk 0:01:21.3]} 22. d5 {[%clk 0:00:55.6]} 22...
exd5 {[%clk 0:01:15.8]} 23. Nd4 {[%clk 0:00:54.7]} 23... dxc4 {[%clk 0:01:11]}
24. Bxc4+ {[%clk 0:00:54.6]} 24... d5 {[%clk 0:01:07.8]} 25. Bd3 {[%clk
0:00:54.5]} 25... c5 {[%clk 0:01:03.3]} 26. Nb5 {[%clk 0:00:54.3]} 26... Re6
{[%clk 0:01:00.3]} 27. Rf3+ {[%clk 0:00:50.9]} 27... Kg7 {[%clk 0:00:58.7]} 28.
h5 {[%clk 0:00:50.6]} 28... d4 {[%clk 0:00:53.5]} 29. Rg3 {[%clk 0:00:46.1]}
29... g5 {[%clk 0:00:49.6]} 30. Bc4 {[%clk 0:00:46.1]} 30... Rf6 {[%clk
0:00:38.3]} 31. Bxg8 {[%clk 0:00:45.7]} 31... Kxg8 {[%clk 0:00:39.2]} 32. f3
{[%clk 0:00:45.1]} 32... Ne6 {[%clk 0:00:38.1]} 33. Nd6 {[%clk 0:00:44.8]} 33...
Bd5 {[%clk 0:00:35.4]} 34. b3 {[%clk 0:00:42.6]} 34... Nf4 {[%clk 0:00:35.5]}
35. Ne4 {[%clk 0:00:41.2]} 35... Bxe4 {[%clk 0:00:34.9]} 36. fxe4 {[%clk
0:00:42.1]} 36... Ne2+ {[%clk 0:00:35.4]} 37. Kd2 {[%clk 0:00:41.8]} 37... Nxg3
{[%clk 0:00:36.3]} 38. e5 {[%clk 0:00:42.5]} 38... Re6 {[%clk 0:00:35]} 39. Re1
{[%clk 0:00:42.9]} 39... Nxh5 {[%clk 0:00:33.7]} 40. Kd3 {[%clk 0:00:42.7]}
40... Nf4+ {[%clk 0:00:34.1]} 41. Ke4 {[%clk 0:00:43.1]} 41... d3 {[%clk
0:00:33.7]} 42. Kf5 {[%clk 0:00:42.3]} 42... Kf7 {[%clk 0:00:29.5]} 43. g3
{[%clk 0:00:41.9]} 43... Nd5 {[%clk 0:00:26.8]} 44. Ke4 {[%clk 0:00:39.5]} 44...
d2 {[%clk 0:00:26.3]} 45. Rf1+ {[%clk 0:00:39.4]} 45... Ke7 {[%clk 0:00:26.2]}
46. Kxd5 {[%clk 0:00:39]} 46... h5 {[%clk 0:00:17.9]} 47. Rd1 {[%clk 0:00:38.9]}
47... h4 {[%clk 0:00:16]} 48. gxh4 {[%clk 0:00:38.7]} 48... gxh4 {[%clk
0:00:16.9]} 49. Rxd2 {[%clk 0:00:39.1]} 49... Rh6 {[%clk 0:00:17.5]} 50. Rh2
{[%clk 0:00:39.1]} 50... h3 {[%clk 0:00:17.6]} 51. a3 {[%clk 0:00:37.2]} 51...
Rh5 {[%clk 0:00:17.8]} 52. b4 {[%clk 0:00:36.3]} 52... cxb4 {[%clk 0:00:18.7]}
53. axb4 {[%clk 0:00:37.2]} 53... a5 {[%clk 0:00:18.6]} 54. b5 {[%clk
0:00:36.5]} 54... Kd7 {[%clk 0:00:18]} 55. Ke4 {[%clk 0:00:33.4]} 55... Ke6
{[%clk 0:00:17.8]} 56. Kf4 {[%clk 0:00:33.9]} 56... Rxe5 {[%clk 0:00:15.6]} 57.
Rxh3 {[%clk 0:00:34.2]} 57... Rxb5 {[%clk 0:00:16.2]} 58. Rh6+ {[%clk
0:00:34.6]} 58... Kd5 {[%clk 0:00:16.1]} 59. Rh5+ {[%clk 0:00:34.6]} 59... Kc4
{[%clk 0:00:16.4]} 60. Rh1 {[%clk 0:00:34.2]} 60... Rc5 {[%clk 0:00:16.5]} 61.
Rc1+ {[%clk 0:00:34.4]} 61... Kd5 {[%clk 0:00:15.4]} 62. Rd1+ {[%clk 0:00:34.4]}
62... Kc6 {[%clk 0:00:15.9]} 63. Ke4 {[%clk 0:00:34.8]} 63... b5 {[%clk
0:00:16.1]} 64. Rd8 {[%clk 0:00:35.1]} 64... b4 {[%clk 0:00:15.9]} 65. Ra8
{[%clk 0:00:35.2]} 65... Kb5 {[%clk 0:00:15.8]} 66. Rb8+ {[%clk 0:00:35]} 66...
Kc4 {[%clk 0:00:16.1]} 67. Ra8 {[%clk 0:00:33.7]} 67... b3 {[%clk 0:00:16]} 68.
Rb8 {[%clk 0:00:33.3]} 68... a4 {[%clk 0:00:15]} 69. Ke3 {[%clk 0:00:33.5]}
69... Kc3 {[%clk 0:00:15]} 70. Ra8 {[%clk 0:00:29.3]} 70... Rc4 {[%clk
0:00:15.2]} 71. Rb8 {[%clk 0:00:27]} 71... b2 {[%clk 0:00:15.6]} 72. Ke2 {[%clk
0:00:27.4]} 72... Rb4 {[%clk 0:00:15.7]} 73. Rc8+ {[%clk 0:00:26.9]} 73... Kb3
{[%clk 0:00:16.2]} 74. Kd2 {[%clk 0:00:25.1]} 74... b1=Q {[%clk 0:00:16.4]} 75.
Rc3+ {[%clk 0:00:25.6]} 75... Ka2 {[%clk 0:00:14.5]} 76. Rc2+ {[%clk 0:00:25.8]}
76... Rb2 {[%clk 0:00:15.1]} 77. Rxb2+ {[%clk 0:00:26.1]} 77... Qxb2+ {[%clk
0:00:16]} 78. Kd3 {[%clk 0:00:26.4]} 78... Ka1 {[%clk 0:00:16.9]} 79. Kc4 {[%clk
0:00:26.8]} 79... Kb1 {[%clk 0:00:17.8]} 80. Kc5 {[%clk 0:00:27.3]} 80... a3
{[%clk 0:00:18.7]} 81. Kc6 {[%clk 0:00:28.1]} 81... a2 {[%clk 0:00:19.6]} 82.
Kd7 {[%clk 0:00:29]} 82... a1=Q {[%clk 0:00:20.5]} 83. Ke8 {[%clk 0:00:29.9]}
83... Qaa3 {[%clk 0:00:20.8]} 84. Kf7 {[%clk 0:00:30.8]} 84... Qac3 {[%clk
0:00:21.4]} 85. Kg6 {[%clk 0:00:30.9]} 85... Qbd2 {[%clk 0:00:22]} 86. Kf5
{[%clk 0:00:31.2]} 86... Qf3+ {[%clk 0:00:20.9]} 87. Ke5 {[%clk 0:00:30.9]}
87... Qfe3+ {[%clk 0:00:19.3]} 88. Kf6 {[%clk 0:00:30.4]} 88... Qdf2+ {[%clk
0:00:19.8]} 89. Kg6 {[%clk 0:00:29.9]} 89... Qeg3+ {[%clk 0:00:20.7]} 90. Kh5
{[%clk 0:00:30.2]} 90... Qfh2# {[%clk 0:00:21.6]} 0-1